bitfinex-derivatives/quotes_BTCF0:USTF0_20250327
["timestamp","ask_amount","ask_price","bid_price","bid_amount"]
[1743053408956,0.20781515,87467.0,87466.0,0.114916]
[1743053409261,0.223636,87467.0,87466.0,0.114916]
[1743053409456,0.0571646,87457.0,87454.0,0.00017159]
[1743053409660,0.1143347,87452.0,87451.0,0.20534321]
[1743053409851,0.1308984,87452.0,87451.0,0.31967921]
[1743053410245,0.15123084,87452.0,87451.0,0.31967921]
[1743053410455,0.21183084,87452.0,87451.0,0.31967921]
[1743053411055,0.19758334,87452.0,87451.0,0.31967921]
[1743053411657,0.1973907,87452.0,87451.0,0.31967921]
[1743053412366,0.19739024,87452.0,87451.0,0.31967921]
[1743053412559,0.19167177,87452.0,87451.0,0.38267921]
[1743053413464,0.19167177,87452.0,87451.0,0.177336]
[1743053413465,0.40592827,87452.0,87451.0,0.177336]
[1743053414964,0.29159357,87452.0,87451.0,0.177336]
[1743053415363,0.29160752,87452.0,87451.0,0.177336]
[1743053416264,0.40594222,87452.0,87451.0,0.177336]
[1743053416463,0.26130752,87452.0,87451.0,0.177336]
[1743053416674,0.16138572,87452.0,87451.0,0.177336]
[1743053417158,0.04705102,87452.0,87451.0,1.677336]
[1743053417366,0.04704656,87452.0,87451.0,1.677336]
[1743053417566,0.04544656,87452.0,87451.0,1.677336]
[1743053417763,0.04704656,87452.0,87451.0,1.677336]
[1743053418067,0.04544656,87452.0,87451.0,1.677336]
[1743053418259,0.04708656,87452.0,87451.0,1.677336]
[1743053419164,0.16142126,87452.0,87451.0,1.677336]
[1743053420061,0.04708656,87452.0,87451.0,1.677336]
[1743053420661,0.04544656,87452.0,87451.0,1.677336]
[1743053421162,0.01514656,87452.0,87451.0,1.677336]
[1743053421766,0.01514656,87452.0,87451.0,0.177336]
[1743053421964,0.01682656,87452.0,87451.0,0.177336]
[1743053422161,0.04982656,87452.0,87451.0,0.177336]
[1743053422363,0.04982656,87452.0,87451.0,1.677336]
[1743053422555,0.07924656,87452.0,87451.0,1.677336]
[1743053423068,0.08088656,87452.0,87451.0,1.677336]
[1743053423756,0.07924656,87452.0,87451.0,1.677336]
[1743053423960,0.08084656,87452.0,87451.0,1.677336]
[1743053424266,0.08084656,87452.0,87451.0,0.177336]
[1743053424661,0.08084656,87452.0,87451.0,1.677336]
[1743053426467,0.07924656,87452.0,87451.0,1.677336]
[1743053426670,0.19358126,87452.0,87451.0,0.177336]
[1743053426969,0.19518126,87452.0,87451.0,0.177336]
[1743053427572,0.19518126,87452.0,87451.0,0.207936]
[1743053427760,0.19358126,87452.0,87451.0,0.207936]
[1743053428366,0.19518126,87452.0,87451.0,0.207936]
[1743053429971,0.08084656,87452.0,87451.0,0.207936]
[1743053430361,0.16408126,87452.0,87451.0,0.207936]
[1743053430558,0.19638126,87452.0,87451.0,0.207936]
[1743053430756,0.08204656,87452.0,87451.0,0.207936]
[1743053430957,0.04974656,87452.0,87451.0,0.207936]
[1743053432273,0.16408126,87452.0,87451.0,0.207936]
[1743053432471,0.04974656,87452.0,87451.0,0.207936]
[1743053432672,0.16248126,87452.0,87451.0,0.207936]
[1743053435669,0.29914238,87452.0,87451.0,0.207936]
[1743053436271,0.30074238,87452.0,87451.0,0.207936]
[1743053436970,0.33826096,87452.0,87451.0,0.0327]
[1743053437170,0.1143451,87444.0,87443.0,0.00017149]
[1743053437376,0.50651441,87444.0,87443.0,0.00017149]
[1743053437575,0.51773765,87444.0,87443.0,0.00017149]
[1743053437881,0.51804347,87444.0,87443.0,0.00017149]
[1743053438071,0.62242841,87444.0,87443.0,0.00017149]
[1743053438271,0.63234528,87444.0,87443.0,0.00017149]
[1743053438672,0.63234528,87444.0,87443.0,0.00117149]
[1743053439372,0.63234528,87444.0,87443.0,0.00217149]
[1743053439581,0.6879388,87444.0,87443.0,0.00217149]
[1743053440279,0.6879388,87444.0,87443.0,0.11651789]
[1743053440479,0.6879388,87444.0,87443.0,0.00217149]
[1743053441681,0.68834782,87444.0,87443.0,0.00217149]
[1743053442176,0.68834782,87444.0,87443.0,0.00023696]
[1743053442380,0.1143477,87442.0,87441.0,0.1143488]
[1743053442574,0.14643185,87442.0,87441.0,0.1143488]
[1743053442780,0.16243366,87442.0,87441.0,0.1143488]
[1743053442981,0.22623366,87442.0,87441.0,0.1143488]
[1743053443173,0.22623366,87442.0,87441.0,0.1473488]
[1743053443368,0.21099352,87442.0,87441.0,0.1473488]
[1743053443569,0.22579961,87442.0,87441.0,0.1483488]
[1743053443982,0.22579961,87442.0,87441.0,0.1493488]
[1743053444387,0.22579961,87442.0,87441.0,0.1163488]
[1743053447187,0.22585858,87442.0,87441.0,0.1163488]
[1743053447886,0.2814521,87442.0,87441.0,0.1163488]
[1743053449588,0.2814521,87442.0,87441.0,0.1491488]
[1743053449589,0.6422521,87442.0,87441.0,0.1491488]
[1743053449778,0.6422521,87442.0,87441.0,0.1794488]
[1743053451082,0.6420859,87442.0,87441.0,0.1794488]
[1743053452173,0.6420859,87442.0,87441.0,0.15371222]
[1743053453589,0.2812859,87442.0,87441.0,0.15371222]
[1743053453778,0.6420859,87442.0,87441.0,0.15371222]
[1743053455293,0.2812859,87442.0,87441.0,0.15371222]
[1743053455487,0.6420859,87442.0,87441.0,0.15371222]
[1743053457082,0.62717906,87442.0,87441.0,0.15371222]
[1743053458492,0.62712742,87442.0,87441.0,0.15371222]
[1743053463904,0.26632742,87442.0,87441.0,0.15371222]
[1743053464084,0.62712742,87442.0,87441.0,0.15371222]
[1743053465599,0.26632742,87442.0,87441.0,0.15371222]
[1743053465799,0.62712742,87442.0,87441.0,0.15371222]
[1743053466202,0.59592742,87442.0,87441.0,0.15371222]
[1743053467294,0.23512742,87442.0,87441.0,0.15371222]
[1743053467494,0.59592742,87442.0,87441.0,0.15371222]
[1743053469404,0.23512742,87442.0,87441.0,0.15371222]
[1743053469706,0.59592742,87442.0,87441.0,0.15371222]
[1743053470607,0.23512742,87442.0,87441.0,0.15371222]
[1743053470798,0.59592742,87442.0,87441.0,0.15371222]
[1743053471199,0.59592743,87442.0,87441.0,0.15371222]
[1743053471402,0.23512743,87442.0,87441.0,0.15371222]
[1743053471705,0.59592743,87442.0,87441.0,0.15371222]
[1743053472098,0.59591,87442.0,87441.0,0.15371222]
[1743053472804,0.62831,87442.0,87441.0,0.15371222]
[1743053475810,0.62831,87442.0,87441.0,0.0651]
[1743053476108,0.62831,87442.0,87441.0,0.1794491]
[1743053476908,0.62830959,87442.0,87441.0,0.1794491]
[1743053477411,0.64257853,87442.0,87441.0,0.14370372]
[1743053478113,0.64257853,87442.0,87441.0,0.11796705]
[1743053478614,0.28177853,87442.0,87441.0,0.11796705]
[1743053478803,0.64257853,87442.0,87441.0,0.11796705]
[1743053479315,0.1143517,87439.0,87438.0,0.1143517]
[1743053479610,0.1370032,87439.0,87438.0,0.1143517]
[1743053479811,0.1143543,87437.0,87436.0,0.1715318]
[1743053480002,0.1370058,87437.0,87436.0,0.1715318]
[1743053480403,0.1992058,87437.0,87436.0,0.1715318]
[1743053480612,0.1982058,87437.0,87436.0,0.1715318]
[1743053480913,0.1972058,87437.0,87436.0,0.1715318]
[1743053481413,0.1972058,87437.0,87436.0,0.2073318]
[1743053482313,0.1654058,87437.0,87436.0,0.2073318]
[1743053482814,0.22099932,87437.0,87436.0,0.2073318]
[1743053484416,0.22081391,87437.0,87436.0,0.2073318]
[1743053489430,0.23589082,87437.0,87436.0,0.264509]
[1743053489613,0.24574925,87437.0,87436.0,0.1501545]
[1743053489806,0.26001819,87437.0,87436.0,0.004]
[1743053490116,0.26001819,87437.0,87424.0,0.20542321]
[1743053490117,0.1143647,87429.0,87424.0,0.20542321]
[1743053490313,0.11437,87425.0,87424.0,0.31971451]
[1743053490503,0.14500587,87425.0,87424.0,0.31971451]
[1743053490712,0.14669508,87425.0,87424.0,0.31971451]
[1743053491022,0.14685991,87425.0,87424.0,0.31971451]
[1743053491412,0.15797621,87425.0,87424.0,0.1143713]
[1743053491610,0.22067621,87425.0,87424.0,0.1486713]
[1743053491810,0.22089747,87425.0,87424.0,0.1486713]
[1743053493716,0.22089747,87425.0,87424.0,0.1446713]
[1743053495718,0.48170525,87425.0,87424.0,0.1446713]
[1743053499124,0.27658898,87425.0,87424.0,0.1446713]
[1743053499326,0.27720651,87425.0,87424.0,0.1446713]
[1743053502936,0.27720651,87425.0,87424.0,0.0303]
[1743053503119,0.27720651,87425.0,87424.0,0.1446713]
[1743053504627,0.27720651,87425.0,87424.0,0.11892969]
[1743053504828,0.2772064,87425.0,87424.0,0.14962969]
[1743053506424,0.2772064,87425.0,87424.0,0.1143713]
[1743053507730,0.2772064,87425.0,87424.0,0.1471713]
[1743053508447,0.6380064,87425.0,87424.0,0.1471713]
[1743053508825,0.1143726,87423.0,87422.0,0.02479909]
[1743053509023,0.14701211,87423.0,87422.0,0.02479909]
[1743053509230,0.16295548,87423.0,87422.0,0.02471909]
[1743053509430,0.22755548,87423.0,87422.0,0.02471909]
[1743053510533,0.22688343,87423.0,87422.0,0.02471909]
[1743053511023,0.58768343,87423.0,87422.0,0.02471909]
[1743053511625,0.58768343,87423.0,87422.0,0.02571909]
[1743053512528,0.1143752,87421.0,87418.0,8e-05]
[1743053512833,0.1143804,87417.0,87416.0,0.00062907]
[1743053513021,0.14470786,87417.0,87416.0,0.00062907]
[1743053513226,0.14630786,87417.0,87416.0,0.00062907]
[1743053513630,0.24280786,87417.0,87416.0,0.00062907]
[1743053513837,0.25875123,87417.0,87416.0,0.00062907]
[1743053514234,0.25953991,87417.0,87416.0,0.00062907]
[1743053514832,0.25853991,87417.0,87416.0,0.00062907]
[1743053515638,0.25953991,87417.0,87416.0,0.00062907]
[1743053515833,0.25853991,87417.0,87416.0,0.00062907]
[1743053517338,0.4835934,87417.0,87416.0,0.00062907]
[1743053517653,0.4845934,87417.0,87416.0,0.00062907]
[1743053517844,0.4845934,87417.0,87416.0,2.075e-05]
[1743053519437,0.1143896,87410.0,87409.0,0.03685473]
[1743053519643,0.48250995,87410.0,87409.0,0.03685473]
[1743053519843,0.50761363,87410.0,87409.0,0.03685473]
[1743053520543,0.523557,87410.0,87409.0,0.03685473]
[1743053520750,0.162757,87410.0,87409.0,0.03685473]
[1743053520942,0.523557,87410.0,87409.0,0.03785473]
[1743053521144,0.52365939,87410.0,87409.0,0.03885473]
[1743053521540,0.53502652,87410.0,87409.0,0.03885473]
[1743053522346,0.16285939,87410.0,87409.0,0.03885473]
[1743053522549,0.52365939,87410.0,87409.0,0.03885473]
[1743053523038,0.53485797,87410.0,87409.0,0.03885473]
[1743053523958,0.59045149,87410.0,87409.0,0.03885473]
[1743053524154,0.22965149,87410.0,87409.0,0.03885473]
[1743053524454,0.59045149,87410.0,87409.0,0.03925473]
[1743053524757,0.57931304,87410.0,87409.0,0.03925473]
[1743053527460,0.64431304,87410.0,87409.0,0.03925473]
[1743053528349,0.64431304,87410.0,87409.0,0.03885473]
[1743053528748,0.64431304,87410.0,87409.0,0.03925473]
[1743053532263,0.64411523,87410.0,87409.0,0.03925473]
[1743053533263,0.64411523,87410.0,87409.0,0.03885473]
[1743053533655,0.64411523,87410.0,87409.0,0.03925473]
[1743053534056,0.64412387,87410.0,87409.0,0.03925473]
[1743053534349,0.64412387,87410.0,87409.0,0.01350859]
[1743053536757,0.28332387,87410.0,87409.0,0.01350859]
[1743053536962,0.64412387,87410.0,87409.0,0.01350859]
[1743053537664,0.64412387,87410.0,87409.0,0.00100765]
[1743053538055,0.64412387,87410.0,87409.0,0.0014]
[1743053538966,0.81461579,87410.0,87409.0,0.0014]
[1743053541658,0.81453063,87410.0,87409.0,0.0014]
[1743053541858,0.45373063,87410.0,87409.0,0.0014]
[1743053542058,0.81453063,87410.0,87409.0,0.0014]
[1743053543864,0.4885598,87410.0,87409.0,0.0014]
[1743053544166,0.8493598,87410.0,87409.0,0.0014]
[1743053544566,0.4885598,87410.0,87409.0,0.0014]
[1743053544766,0.8493598,87410.0,87409.0,0.0014]
[1743053545269,0.1143909,87409.0,87408.0,0.00373939]
[1743053545460,0.23675327,87409.0,87408.0,0.00373939]
[1743053545664,0.25269664,87409.0,87408.0,0.00373939]
[1743053546065,0.58486753,87409.0,87408.0,0.00373939]
[1743053546262,0.25269664,87409.0,87408.0,0.00373939]
[1743053546464,0.58486753,87409.0,87408.0,0.00473939]
[1743053546769,0.25269664,87409.0,87408.0,0.00573939]
[1743053546965,0.58486753,87409.0,87408.0,0.00573939]
[1743053547265,0.61349664,87409.0,87408.0,0.00573939]
[1743053547669,0.59822779,87409.0,87408.0,0.00573939]
[1743053547968,0.59822779,87409.0,87408.0,0.12013159]
[1743053548361,0.82414794,87409.0,87408.0,0.12013159]
[1743053548564,0.82414794,87409.0,87408.0,0.00573939]
[1743053550155,0.81842656,87409.0,87408.0,0.00573939]
[1743053550357,0.46334794,87409.0,87408.0,0.00573939]
[1743053550560,0.79551883,87409.0,87408.0,0.00573939]
[1743053550762,0.82414794,87409.0,87408.0,0.00573939]
[1743053550963,0.82387335,87409.0,87408.0,0.002]
[1743053551358,0.46307335,87409.0,87408.0,0.002]
[1743053551668,0.79524424,87409.0,87408.0,0.002]
[1743053551871,0.82387335,87409.0,87408.0,0.002]
[1743053552974,0.82383291,87409.0,87408.0,0.002]
[1743053553474,0.1143935,87407.0,87406.0,0.1143937]
[1743053553773,0.13094288,87407.0,87406.0,0.1143937]
[1743053554159,0.17858625,87407.0,87406.0,0.1143937]
[1743053554362,0.21018625,87407.0,87406.0,0.1143937]
[1743053554772,0.57098625,87407.0,87406.0,0.1143937]
[1743053554967,0.57098625,87407.0,87406.0,0.1153937]
[1743053555161,0.57098625,87407.0,87406.0,0.07963369]
[1743053555570,0.7969064,87407.0,87406.0,0.08063369]
[1743053555771,0.82553551,87407.0,87406.0,0.08063369]
[1743053557479,0.7969064,87407.0,87406.0,0.08063369]
[1743053558070,0.8240268,87407.0,87406.0,0.08063369]
[1743053559468,0.81117429,87407.0,87406.0,0.08063369]
[1743053560379,0.7967206,87407.0,87406.0,0.08063369]
[1743053560780,0.81098852,87407.0,87406.0,0.08063369]
[1743053561680,0.81098852,87407.0,87406.0,0.002]
[1743053562279,0.8109931,87407.0,87406.0,0.002]
[1743053562675,0.82386543,87407.0,87406.0,0.002]
[1743053564582,0.81099283,87407.0,87406.0,0.002]
[1743053566077,0.1144014,87401.0,87396.0,0.1144075]
[1743053566279,0.13084973,87401.0,87397.0,0.03068]
[1743053566480,0.13085001,87401.0,87397.0,0.03068]
[1743053566681,0.14679338,87401.0,87397.0,0.03068]
[1743053566883,0.21049338,87401.0,87397.0,0.03068]
[1743053567277,0.21049338,87401.0,87400.0,0.10345766]
[1743053568180,0.21049338,87401.0,87400.0,0.10545766]
[1743053569875,0.22208001,87401.0,87400.0,0.10545766]
[1743053570687,0.27767353,87401.0,87400.0,0.10545766]
[1743053572020,0.63847353,87401.0,87400.0,0.10545766]
[1743053572171,0.63847353,87401.0,87387.0,0.00864088]
[1743053572172,0.1144197,87387.0,87384.0,0.00045775]
[1743053572377,0.1144223,87385.0,87384.0,0.11488135]
[1743053572576,0.0316,87386.0,87385.0,0.1144223]
[1743053572789,0.04050012,87386.0,87385.0,0.1387223]
[1743053572987,0.02484349,87386.0,87385.0,0.1696223]
[1743053573985,0.02484349,87386.0,87385.0,0.1736223]
[1743053574986,0.02484349,87386.0,87385.0,0.1766223]
[1743053575582,0.05614349,87386.0,87385.0,0.1766223]
[1743053576290,0.05774349,87386.0,87385.0,0.1766223]
[1743053576488,0.05774349,87386.0,87385.0,1.6766223]
[1743053576687,0.05614349,87386.0,87385.0,1.6766223]
[1743053577082,0.05614349,87386.0,87385.0,1.7868223]
[1743053581886,0.08774349,87386.0,87385.0,1.7868223]
[1743053582585,0.08774349,87386.0,87385.0,1.6766223]
[1743053582791,0.08774349,87386.0,87385.0,1.7867023]
[1743053583795,0.20216449,87386.0,87385.0,1.7867023]
[1743053583991,0.08774349,87386.0,87385.0,1.7867023]
[1743053584395,0.20216449,87386.0,87385.0,1.7867023]
[1743053584998,0.08774349,87386.0,87385.0,1.7867023]
[1743053587285,0.05737779,87393.0,87385.0,1.7867023]
[1743053587286,0.00017159,87393.0,87392.0,0.1144132]
[1743053587596,0.00185159,87393.0,87392.0,0.1144132]
[1743053587895,0.00185159,87393.0,87392.0,1.6144132]
[1743053588096,0.00185159,87393.0,87392.0,1.6993132]
[1743053588492,0.00017159,87393.0,87392.0,1.6993132]
[1743053589993,0.00017159,87393.0,87392.0,1.7013132]
[1743053593696,0.03247159,87393.0,87392.0,1.7013132]
[1743053594602,0.03247159,87393.0,87392.0,0.2013132]
[1743053594898,0.03407159,87393.0,87392.0,0.2013132]
[1743053595304,0.03247159,87393.0,87392.0,0.2013132]
[1743053596202,0.03247159,87393.0,87392.0,0.5621132]
[1743053597195,0.03407159,87393.0,87392.0,0.5621132]
[1743053597395,0.03407159,87393.0,87392.0,2.0621132]
[1743053597604,0.03247159,87393.0,87392.0,2.0621132]
[1743053597901,0.04220914,87393.0,87392.0,2.0621132]
[1743053599401,0.05115718,87393.0,87392.0,2.0621132]
[1743053599598,0.05724297,87393.0,87392.0,2.0621132]
[1743053599798,8e-05,87408.0,87407.0,0.1143935]
[1743053600104,0.00168,87408.0,87407.0,0.1143935]
[1743053600496,0.00168,87408.0,87407.0,0.12591338]
[1743053600696,0.00032,87421.0,87412.0,0.0571928]
[1743053600907,0.03248,87419.0,87418.0,0.1143791]
[1743053601100,0.03368001,87419.0,87418.0,0.1150591]
[1743053601307,0.03360001,87419.0,87418.0,1.6150591]
[1743053601613,0.0324,87419.0,87418.0,1.6150591]
[1743053602200,0.0364,87419.0,87418.0,1.6150591]
[1743053602997,0.0678,87419.0,87418.0,1.6150591]
[1743053603199,0.0718,87419.0,87418.0,1.6150591]
[1743053604205,0.1861778,87419.0,87418.0,0.1150591]
[1743053604402,0.18729781,87419.0,87418.0,0.1150591]
[1743053604602,0.07292001,87419.0,87418.0,0.1150591]
[1743053605000,0.0718,87419.0,87418.0,0.1150591]
[1743053605805,0.07296,87419.0,87418.0,0.1150591]
[1743053606306,0.1873378,87419.0,87418.0,0.1150591]
[1743053609616,0.07296,87419.0,87418.0,0.1150591]
[1743053610119,0.1873378,87419.0,87418.0,0.2250991]
[1743053610816,0.10296,87419.0,87418.0,0.2250991]
[1743053611913,0.10883857,87419.0,87418.0,0.2250991]
[1743053612810,0.10883857,87419.0,87418.0,0.2557991]
[1743053613318,0.10883857,87419.0,87418.0,0.6165991]
[1743053613520,0.10887858,87419.0,87418.0,0.6165991]
[1743053613715,0.07647858,87419.0,87418.0,0.6165991]
[1743053615722,0.07647858,87419.0,87418.0,2.1165991]
[1743053615923,0.07527857,87419.0,87418.0,2.1165991]
[1743053621523,0.07527857,87419.0,87418.0,1.7557991]
[1743053621729,0.07527857,87419.0,87418.0,2.1165991]
[1743053625827,0.07527857,87419.0,87418.0,0.5858991]
[1743053626030,0.07639858,87419.0,87418.0,0.5854991]
[1743053626233,0.07639858,87419.0,87418.0,0.4758591]
[1743053626532,0.07527857,87419.0,87418.0,0.6487991]
[1743053628124,0.08405708,87419.0,87418.0,0.6487991]
[1743053629226,0.07527857,87419.0,87418.0,0.6487991]
[1743053631231,0.08404985,87419.0,87418.0,0.6487991]
[1743053632221,0.07527857,87419.0,87418.0,0.6487991]
[1743053632627,0.07639858,87419.0,87418.0,0.6487991]
[1743053633328,0.08404401,87419.0,87418.0,0.6487991]
[1743053634334,0.07527857,87419.0,87418.0,0.6487991]
[1743053636825,0.0809987,87419.0,87418.0,0.6487991]
[1743053637326,0.08219871,87419.0,87418.0,0.6487991]
[1743053637723,0.0809987,87419.0,87418.0,0.6487991]
[1743053638837,0.1953765,87419.0,87418.0,0.6487991]
[1743053639137,0.19657651,87419.0,87418.0,0.6487991]
[1743053639333,0.20556205,87419.0,87418.0,0.6487991]
[1743053639638,0.09118425,87419.0,87418.0,0.5854991]
[1743053640037,0.10098637,87419.0,87418.0,0.5854991]
[1743053642336,0.10098637,87419.0,87418.0,2.0854991]
[1743053642540,0.09978636,87419.0,87418.0,2.0854991]
[1743053642837,0.08998424,87419.0,87418.0,1.7246991]
[1743053644339,0.0809987,87419.0,87418.0,1.7246991]
[1743053644526,0.13660447,87419.0,87418.0,1.7572991]
[1743053646834,0.13776447,87419.0,87418.0,1.7572991]
[1743053647732,0.13776447,87419.0,87418.0,1.7574991]
[1743053647733,0.13660447,87419.0,87418.0,1.7574991]
[1743053648240,0.13772448,87419.0,87418.0,1.7574991]
[1743053649341,0.13772453,87419.0,87418.0,1.7574991]
[1743053649540,0.30785681,87419.0,87418.0,1.7890991]
[1743053649833,0.30901681,87419.0,87418.0,1.7890991]
[1743053650340,0.30785681,87419.0,87418.0,1.7890991]
[1743053650537,0.30897682,87419.0,87418.0,1.7890991]
[1743053651627,0.30785681,87419.0,87418.0,1.7890991]
[1743053651829,0.30897682,87419.0,87418.0,1.7890991]
[1743053652639,0.3089767,87419.0,87418.0,1.7889791]
[1743053653540,0.30325664,87419.0,87418.0,1.7889791]
[1743053653839,0.07639858,87419.0,87418.0,1.7889791]
[1743053654038,0.07527857,87419.0,87418.0,1.7889791]
[1743053654427,0.0809986,87419.0,87418.0,1.7889791]
[1743053654639,0.00587857,87419.0,87418.0,1.7889791]
[1743053654936,0.20547365,87425.0,87424.0,0.1143713]
[1743053655141,0.20547365,87425.0,87424.0,0.4758113]
[1743053655634,0.20659366,87425.0,87424.0,0.4758113]
[1743053655832,0.20659366,87425.0,87424.0,0.5699113]
[1743053656035,0.24197365,87425.0,87424.0,0.5699113]
[1743053656236,0.24697365,87425.0,87424.0,0.5699113]
[1743053657526,0.24697365,87425.0,87424.0,0.57869711]
[1743053658538,0.01057159,87425.0,87424.0,0.57869711]
[1743053659534,0.04077159,87425.0,87424.0,0.57869711]
[1743053659943,0.04077159,87425.0,87424.0,0.68833711]
[1743053660437,0.04957413,87425.0,87424.0,0.68833711]
[1743053661441,0.04077159,87425.0,87424.0,0.68833711]
[1743053662558,0.04953197,87425.0,87424.0,0.68833711]
[1743053667040,0.05551556,87425.0,87424.0,0.68833711]
[1743053667238,0.08601556,87425.0,87424.0,0.68833711]
[1743053668439,0.07725518,87425.0,87424.0,0.68833711]
[1743053669940,0.07725518,87425.0,87424.0,0.32753711]
[1743053670150,0.07837519,87425.0,87424.0,0.32753711]
[1743053670947,0.07845519,87425.0,87424.0,0.32753711]
[1743053671742,0.07725518,87425.0,87424.0,0.32753711]
[1743053672444,0.08601879,87425.0,87424.0,0.32753711]
[1743053674543,0.07725518,87425.0,87424.0,0.32753711]
[1743053676645,0.21413399,87425.0,87424.0,0.32753711]
[1743053678453,0.22289714,87425.0,87424.0,0.32753711]
[1743053678749,0.33726714,87425.0,87424.0,0.12379711]
[1743053678946,0.34298695,87425.0,87424.0,0.1150113]
[1743053679143,0.70494695,87425.0,87424.0,0.00064]
[1743053679348,0.1143804,87417.0,87411.0,0.10948]
[1743053679551,0.13596546,87417.0,87416.0,0.32084501]
[1743053679745,0.13596546,87417.0,87416.0,1.82084501]
[1743053680255,0.20673812,87417.0,87416.0,0.32084501]
[1743053680648,0.21073812,87417.0,87416.0,0.32084501]
[1743053681351,0.21073907,87417.0,87416.0,0.32084501]
[1743053681551,0.21373907,87417.0,87416.0,0.32084501]
[1743053682757,0.21415284,87417.0,87416.0,0.32084501]
[1743053684352,0.21415284,87417.0,87416.0,0.1155018]
[1743053684558,0.26976402,87417.0,87416.0,0.1155018]
[1743053685658,0.63056402,87417.0,87416.0,0.1155018]
[1743053686873,0.26976402,87417.0,87416.0,0.1155018]
[1743053687056,0.63056402,87417.0,87416.0,0.1155018]
[1743053687758,0.26976402,87417.0,87416.0,0.1155018]
[1743053688061,0.63056402,87417.0,87416.0,0.1155018]
[1743053688559,0.57495284,87417.0,87416.0,0.1155018]
[1743053689856,0.57495284,87417.0,87416.0,0.1272416]
[1743053690647,0.57495288,87417.0,87416.0,0.1155018]
[1743053691758,0.57495288,87417.0,87416.0,0.12702148]
[1743053692164,0.57495288,87417.0,87416.0,0.1155018]
[1743053692763,0.21415288,87417.0,87416.0,0.1155018]
[1743053692951,0.57495288,87417.0,87416.0,0.00112]
[1743053693161,0.1143922,87408.0,87407.0,0.00017159]
[1743053693354,0.48580762,87408.0,87407.0,0.00017159]
[1743053693564,0.1143962,87405.0,87404.0,8e-05]
[1743053693871,0.1144105,87394.0,87393.0,0.6919052]
[1743053694084,0.12358592,87394.0,87393.0,0.6925052]
[1743053694365,0.12361429,87394.0,87393.0,0.6925052]
[1743053694560,0.13857598,87394.0,87393.0,0.6925052]
[1743053694768,0.20139598,87394.0,87393.0,0.68123431]
[1743053694970,0.21715223,87394.0,87393.0,0.68123431]
[1743053695469,0.21715223,87394.0,87393.0,0.32243431]
[1743053695963,0.21715223,87394.0,87393.0,0.32443431]
[1743053696264,0.21715223,87394.0,87393.0,0.35453431]
[1743053696469,0.21715223,87394.0,87393.0,0.1491911]
[1743053697465,0.21715223,87394.0,87393.0,0.1810911]
[1743053698066,0.10274173,87394.0,87393.0,0.1810911]
[1743053698275,0.04144173,87394.0,87393.0,0.5418911]
[1743053698460,0.02648004,87394.0,87393.0,0.5418911]
[1743053698963,0.02648004,87394.0,87393.0,2.0418911]
[1743053699169,0.01518738,87394.0,87393.0,2.0418911]
[1743053699469,0.01518738,87394.0,87393.0,2.1514911]
[1743053702664,0.02496119,87394.0,87393.0,2.1514911]
[1743053702877,0.02496119,87394.0,87393.0,2.1514511]
[1743053703169,0.05723921,87394.0,87393.0,2.1514511]
[1743053703969,0.05723921,87394.0,87393.0,1.7906511]
[1743053704966,0.17164971,87394.0,87393.0,1.7906511]
[1743053705162,0.05723921,87394.0,87393.0,1.7906511]
[1743053705569,0.17164971,87394.0,87393.0,1.7906511]
[1743053705772,0.02483921,87394.0,87393.0,1.7906511]
[1743053706271,0.114402,87401.0,87400.0,0.1144014]
[1743053706462,0.115842,87401.0,87400.0,0.5085414]
[1743053706664,0.21817323,87401.0,87400.0,0.5396414]
[1743053707175,0.24957323,87401.0,87400.0,0.5396414]
[1743053707383,0.24957323,87401.0,87400.0,0.1788414]
[1743053707384,0.28057323,87401.0,87400.0,0.1788414]
[1743053708368,0.16617123,87401.0,87400.0,0.1788414]
[1743053709163,0.10377123,87401.0,87400.0,0.1788414]
[1743053710173,0.00144,87401.0,87400.0,0.1788414]
[1743053710580,0.03314,87401.0,87400.0,0.1788414]
[1743053711064,0.00144,87401.0,87400.0,0.1788414]
[1743053711381,0.00017159,87402.0,87401.0,0.1144014]
[1743053711576,0.00017159,87402.0,87401.0,0.1150014]
[1743053711781,0.00017159,87402.0,87401.0,0.2086014]
[1743053711981,0.00017159,87402.0,87401.0,0.1779014]
[1743053712168,0.09589159,87402.0,87401.0,0.1150014]
[1743053712677,0.06569159,87402.0,87401.0,0.1794014]
[1743053712879,0.06569159,87402.0,87401.0,0.2101014]
[1743053715088,0.06569159,87402.0,87401.0,0.1794014]
[1743053715570,0.06569159,87402.0,87401.0,1.6794014]
[1743053715771,0.06417159,87402.0,87401.0,1.6794014]
[1743053716178,0.06417159,87402.0,87401.0,1.5006]
[1743053716381,0.54509318,87402.0,87401.0,0.0006]
[1743053716578,0.1144027,87400.0,87399.0,0.1144029]
[1743053716783,0.12156419,87400.0,87399.0,0.1158829]
[1743053717881,0.12156419,87400.0,87399.0,0.1178829]
[1743053718576,0.12727803,87400.0,87399.0,0.1178829]
[1743053718780,0.12727803,87400.0,87399.0,0.1164029]
[1743053719584,0.12727803,87400.0,87399.0,0.1170029]
[1743053720475,0.12156419,87400.0,87399.0,0.1170029]
[1743053721276,0.12156461,87400.0,87399.0,0.1170029]
[1743053723587,0.12156461,87400.0,87399.0,0.1164029]
[1743053723981,0.12156461,87400.0,87399.0,0.1170829]
[1743053726081,0.18316461,87400.0,87399.0,0.1170829]
[1743053728877,0.18316461,87400.0,87399.0,0.1483829]
[1743053729582,0.40962574,87400.0,87399.0,0.1483829]
[1743053733490,0.35400361,87400.0,87399.0,0.1483829]
[1743053734503,0.3482817,87400.0,87399.0,0.00268]
[1743053734693,0.3540036,87400.0,87399.0,0.002]
[1743053735585,0.3540036,87400.0,87399.0,0.0026]
[1743053735784,0.35400372,87400.0,87399.0,0.0026]
[1743053736491,0.18316472,87400.0,87399.0,0.0026]
[1743053738190,0.18316472,87400.0,87399.0,0.002]
[1743053738392,0.18316472,87400.0,87399.0,0.0026]
[1743053738795,0.18316472,87400.0,87399.0,0.002]
[1743053743314,0.18316472,87400.0,87399.0,0.0649]
[1743053744906,0.18316472,87400.0,87399.0,0.0655]
[1743053745096,0.18316472,87400.0,87399.0,0.0649]
[1743053745300,0.35400372,87400.0,87399.0,0.0655]
[1743053746305,0.35400372,87400.0,87399.0,0.0649]
[1743053748305,0.35400372,87400.0,87399.0,0.06634]
[1743053749108,0.23878815,87400.0,87399.0,0.0649]
[1743053749797,0.23878815,87400.0,87399.0,0.0655]
[1743053752510,0.23878815,87400.0,87399.0,0.0649]
[1743053753498,0.23878815,87400.0,87399.0,0.0655]
[1743053755305,0.59958815,87400.0,87399.0,0.0655]
[1743053757608,0.23878815,87400.0,87399.0,0.0655]
[1743053757902,0.59958815,87400.0,87399.0,0.0655]
[1743053758108,0.23878815,87400.0,87399.0,0.0655]
[1743053758308,0.59958815,87400.0,87399.0,0.0655]
[1743053759294,0.61382293,87400.0,87399.0,0.0655]
[1743053759499,0.59958815,87400.0,87399.0,0.0649]
[1743053759808,0.23878815,87400.0,87399.0,0.0655]